bitfinex-derivatives/quotes_SOLF0:USTF0_20241217
["timestamp","ask_amount","ask_price","bid_price","bid_amount"]
[1734425611823,2.2982,217.57,217.54,2.16]
[1734425612027,2.2983,217.56,217.54,2.16]
[1734425613624,7.14181184,217.58,217.54,2.16]
[1734425613625,2.2982,217.57,217.54,2.16]
[1734425614526,2.2978,217.61,217.57,2.2981]
[1734425614725,1.4823,217.65,217.57,2.2981]
[1734425614927,7.14181184,217.61,217.57,2.2981]
[1734425615228,7.14181184,217.61,217.54,9.30181184]
[1734425615229,7.14181184,217.59,217.54,2.16]
[1734425616025,7.14181184,217.57,217.54,2.16]
[1734425616328,7.14181184,217.57,217.45,4.5989]
[1734425616329,7.14181184,217.57,217.53,2.16]
[1734425616824,2.2984,217.56,217.53,2.16]
[1734425617021,7.14181184,217.59,217.53,2.16]
[1734425617424,2.16,217.63,217.53,2.16]
[1734425617626,7.14181184,217.6,217.53,2.16]
[1734425617927,2.2981,217.59,217.55,2.2983]
[1734425618224,2.2981,217.59,217.53,2.16]
[1734425618429,2.2979,217.6,217.54,7.14181184]
[1734425618827,2.16,217.71,217.56,7.14181184]
[1734425619031,7.14181184,217.64,217.56,7.14181184]
[1734425619231,1.6241,217.69,217.56,7.14181184]
[1734425619536,7.14181184,217.65,217.61,2.2977]
[1734425619727,7.14181184,217.65,217.61,4.4577]
[1734425620125,1.6241,217.69,217.61,4.4577]
[1734425620329,7.14181184,217.65,217.62,2.2976]
[1734425620827,9.43921184,217.65,217.61,4.4577]
[1734425621030,1.5099,217.72,217.61,4.4577]
[1734425621031,2.16,217.74,217.61,2.16]
[1734425621232,7.14181184,217.67,217.61,2.16]
[1734425621622,3.2067,217.73,217.61,2.16]
[1734425621826,7.14181184,217.67,217.61,2.16]
[1734425623031,2.2973,217.66,217.62,2.2976]
[1734425623228,9.43911184,217.66,217.62,2.2976]
[1734425623725,2.2969,217.7,217.64,2.2973]
[1734425623921,7.14181184,217.67,217.61,2.16]
[1734425624123,7.14181184,217.65,217.61,2.16]
[1734425624730,5.65197164,217.71,217.61,2.16]
[1734425624929,7.14181184,217.65,217.61,2.16]
[1734425625323,2.2975,217.64,217.61,2.16]
[1734425625522,7.14181184,217.65,217.61,2.16]
[1734425625924,5.65197164,217.71,217.61,2.16]
[1734425626130,7.14181184,217.65,217.61,2.16]
[1734425626526,2.2975,217.64,217.61,2.16]
[1734425626833,7.14181184,217.63,217.61,2.16]
[1734425627031,2.2976,217.62,217.61,2.16]
[1734425627433,7.14181184,217.63,217.58,2.16]
[1734425627633,7.14181184,217.61,217.57,4.4582]
[1734425627936,7.14181184,217.61,217.57,2.16]
[1734425628231,2.298,217.6,217.57,2.16]
[1734425629437,2.298,217.59,217.57,2.16]
[1734425631234,2.2979,217.6,217.57,2.16]
[1734425634432,9.43981184,217.59,217.57,2.16]
[1734425634933,7.14181184,217.59,217.57,2.16]
[1734425635132,7.14181184,217.59,217.56,4.4583]
[1734425636641,9.43981184,217.59,217.56,2.16]
[1734425637234,7.14181184,217.59,217.56,4.4583]
[1734425638637,9.43981184,217.59,217.56,4.4583]
[1734425639441,9.43981184,217.59,217.56,2.16]
[1734425641440,7.14181184,217.59,217.52,12.68193082]
[1734425641741,7.14181184,217.57,217.53,2.16]
[1734425642243,9.44001184,217.57,217.53,2.16]
[1734425643642,9.44001184,217.57,217.54,2.2985]
[1734425645340,7.14181184,217.57,217.54,2.2985]
[1734425646543,7.14181184,217.57,217.46,1.6201]
[1734425646843,7.14181184,217.57,217.53,2.2986]
[1734425647041,7.14181184,217.57,217.53,4.4586]
[1734425647444,2.2983,217.56,217.53,4.4586]
[1734425647645,7.14181184,217.55,217.51,2.16]
[1734425648337,2.2987,217.53,217.51,2.16]
[1734425648741,7.14181184,217.55,217.51,2.16]
[1734425649145,7.14181184,217.53,217.49,2.16]
[1734425649539,2.2988,217.52,217.49,2.16]
[1734425650045,7.14181184,217.53,217.49,2.16]
[1734425650242,7.14181184,217.53,217.47,9.44091184]
[1734425650243,2.2989,217.51,217.47,9.44091184]
[1734425650447,2.2989,217.51,217.48,2.16]
[1734425651746,2.2989,217.51,217.48,4.4591]
[1734425652152,2.2987,217.52,217.48,4.4591]
[1734425654352,2.2987,217.52,217.49,2.16]
[1734425655648,2.16,217.59,217.49,2.16]
[1734425655851,7.14181184,217.56,217.49,9.30181184]
[1734425656044,7.14181184,217.56,217.5,4.82553046]
[1734425656247,7.14181184,217.56,217.49,9.30181184]
[1734425656248,9.44011184,217.56,217.49,9.30181184]
[1734425656748,9.44011184,217.56,217.5,4.8253996]
[1734425656951,7.14181184,217.54,217.49,2.16]
[1734425657250,7.14181184,217.54,217.46,8.76191184]
[1734425657454,7.14181184,217.54,217.49,2.16]
[1734425657955,7.14181184,217.52,217.49,2.16]
[1734425658753,9.44051184,217.52,217.49,2.16]
[1734425669060,9.44051184,217.52,217.41,1.502]
[1734425669061,2.2991,217.49,217.47,2.16]
[1734425669265,7.14181184,217.5,217.46,2.16]
[1734425669457,7.14181184,217.5,217.47,4.82902371]
[1734425669662,2.2991,217.49,217.46,2.16]
[1734425670467,9.44061184,217.52,217.48,2.2991]
[1734425670879,7.14181184,217.52,217.48,2.2991]
[1734425672276,2.2988,217.51,217.48,2.2991]
[1734425675782,9.44041184,217.54,217.47,7.14181184]
[1734425675987,9.44041184,217.54,217.48,4.83265717]
[1734425676171,9.44041184,217.54,217.47,7.14181184]
[1734425676373,9.44041184,217.54,217.48,4.83349366]
[1734425676678,9.44041184,217.54,217.47,7.14181184]
[1734425677074,9.44041184,217.54,217.48,4.83346816]
[1734425677273,2.2986,217.54,217.47,7.14181184]
[1734425677482,2.2986,217.54,217.48,4.83459852]
[1734425677680,7.14181184,217.57,217.49,11.97593428]
[1734425677980,7.14181184,217.53,217.5,2.16]
[1734425678684,9.44041184,217.53,217.5,2.16]
[1734425681977,9.44041184,217.53,217.49,2.2989]
[1734425682180,9.44041184,217.53,217.5,6.99701012]
[1734425682377,9.44041184,217.53,217.5,2.16]
[1734425686986,7.14181184,217.56,217.51,4.84082529]
[1734425687183,10.75517996,217.63,217.5,9.30181184]
[1734425687380,0.71219216,217.62,217.51,4.84068311]
[1734425687591,9.44011184,217.57,217.53,2.2985]
[1734425687791,9.44011184,217.57,217.5,9.30181184]
[1734425687989,9.43981184,217.59,217.55,2.2983]
[1734425688192,9.43981184,217.59,217.55,4.4583]
[1734425688595,9.43981184,217.59,217.55,2.16]
[1734425688793,9.43981184,217.59,217.56,2.2983]
[1734425689094,7.14181184,217.59,217.55,2.16]
[1734425689394,2.2981,217.58,217.55,4.4584]
[1734425691087,1.5355,217.63,217.55,2.16]
[1734425691286,7.14181184,217.61,217.55,2.16]
[1734425691485,7.14181184,217.61,217.56,4.83892889]
[1734425691700,7.14181184,217.61,217.55,2.16]
[1734425691884,7.14181184,217.61,217.56,4.83894197]
[1734425692094,7.14181184,217.59,217.55,2.16]
[1734425692290,7.14181184,217.59,217.56,4.83886001]
[1734425692487,7.14181184,217.59,217.55,2.16]
[1734425693197,7.14181184,217.59,217.56,2.2982]
[1734425695497,7.14181184,217.59,217.56,2.16]
[1734425696298,2.2982,217.58,217.56,2.16]
[1734425699903,7.14181184,217.59,217.56,2.16]
[1734425700203,9.43981184,217.59,217.56,2.16]
[1734425700400,9.43981184,217.59,217.56,4.4583]
[1734425700600,9.43981184,217.59,217.56,2.16]
[1734425702097,7.14181184,217.59,217.56,2.16]
[1734425703303,2.2981,217.58,217.56,2.16]
[1734425703501,7.14181184,217.59,217.56,2.16]
[1734425704002,2.2981,217.58,217.56,2.16]
[1734425707706,9.43981184,217.59,217.56,2.16]
[1734425710004,2.2979,217.6,217.57,2.2982]
[1734425710502,7.14181184,217.61,217.59,2.2979]
[1734425710808,2.2977,217.62,217.59,2.2979]
[1734425711011,7.14181184,217.61,217.56,2.16]
[1734425711203,7.14181184,217.61,217.57,2.16]
[1734425711402,7.14181184,217.61,217.58,2.16]
[1734425711705,7.14181184,217.61,217.53,5.44160381]
[1734425711706,7.14181184,217.61,217.57,2.16]
[1734425712108,2.2979,217.6,217.57,4.4581]
[1734425713609,9.43961184,217.61,217.58,2.2981]
[1734425714404,7.14181184,217.61,217.58,2.2981]
[1734425715204,3.8331,217.63,217.6,2.2978]
[1734425715402,10.97491184,217.63,217.6,2.2978]
[1734425717398,8.67731184,217.63,217.57,2.16]
[1734425719108,1.5355,217.63,217.57,2.16]
[1734425719410,8.67731184,217.63,217.57,2.16]
[1734425720208,7.14181184,217.63,217.57,2.16]
[1734425720702,7.14181184,217.63,217.58,2.16]
[1734425726109,7.14181184,217.61,217.57,2.16]
[1734425727515,5.41927376,217.67,217.57,4.4582]
[1734425727711,7.14181184,217.62,217.57,4.4582]
[1734425729506,2.2978,217.61,217.57,4.4582]
[1734425730914,2.2978,217.61,217.58,2.16]
[1734425731714,2.2978,217.61,217.57,2.2982]
[1734425731715,2.2978,217.61,217.59,2.16]
[1734425731914,9.43951184,217.62,217.59,2.16]
[1734425732118,5.41927376,217.67,217.59,2.16]
[1734425732416,7.14181184,217.64,217.59,2.16]
[1734425733219,9.43931184,217.64,217.6,2.2978]
[1734425734021,7.14181184,217.64,217.59,2.16]
[1734425734224,2.2977,217.62,217.59,4.458]
[1734425736222,2.2977,217.62,217.59,2.298]
[1734425736422,2.2977,217.62,217.59,4.458]
[1734425737020,2.2977,217.62,217.6,2.2978]
[1734425741629,2.2977,217.62,217.59,2.16]
[1734425742322,7.14181184,217.64,217.59,2.16]
[1734425742828,7.14181184,217.64,217.6,4.83888941]
[1734425743029,7.14181184,217.64,217.59,2.16]
[1734425743233,7.14181184,217.64,217.6,4.83920482]
[1734425743421,7.14181184,217.64,217.6,2.2978]
[1734425744531,2.2977,217.62,217.6,2.2978]
[1734425746328,2.2977,217.62,217.59,2.16]
[1734425747032,2.2977,217.62,217.6,2.16]
[1734425747932,2.2977,217.62,217.56,7.14181184]
[1734425748232,2.2977,217.62,217.57,7.00065057]
[1734425748428,2.2977,217.62,217.59,2.2979]
[1734425749028,2.2976,217.63,217.6,2.2978]
[1734425749229,7.14181184,217.64,217.58,7.14181184]
[1734425749428,7.14181184,217.64,217.59,4.83995055]
[1734425749624,9.43931184,217.64,217.61,2.2977]
[1734425749830,9.43931184,217.64,217.58,7.14181184]
[1734425749831,7.14181184,217.64,217.58,7.14181184]
[1734425750127,7.14181184,217.64,217.57,2.16]
[1734425750128,2.2977,217.62,217.59,4.84008366]
[1734425750325,7.14181184,217.62,217.59,4.84008366]
[1734425750524,7.14181184,217.62,217.57,2.16]
[1734425750730,2.2978,217.61,217.58,4.84166407]
[1734425751034,2.2978,217.61,217.59,4.84166407]
[1734425751234,2.2978,217.61,217.58,2.16]
[1734425751435,2.2978,217.61,217.59,4.84078518]
[1734425751735,7.14181184,217.62,217.58,2.16]
[1734425752132,2.2978,217.61,217.59,4.84056585]
[1734425752333,2.2978,217.61,217.58,2.16]
[1734425752532,2.2978,217.61,217.59,4.84099823]
[1734425752734,2.2978,217.61,217.58,2.16]
[1734425752929,2.2978,217.61,217.59,4.84099823]
[1734425753229,2.2978,217.61,217.58,4.4581]
[1734425753432,2.2978,217.61,217.59,4.84068691]
[1734425753936,2.2978,217.61,217.6,4.84068691]
[1734425755633,2.2977,217.62,217.6,4.84068691]
[1734425755831,2.2977,217.62,217.59,2.298]
[1734425756036,2.2977,217.62,217.6,4.83884902]
[1734425756331,7.14181184,217.64,217.59,2.298]
[1734425756535,2.2978,217.61,217.59,2.298]
[1734425757741,2.2977,217.62,217.6,4.8391252]
[1734425757938,7.14181184,217.64,217.6,2.2978]
[1734425758544,2.2976,217.63,217.6,2.2978]
[1734425765052,2.2976,217.63,217.61,2.2977]
[1734425766150,7.17719986,217.69,217.61,7.14181184]
[1734425766151,1.562,217.69,217.61,7.14181184]
[1734425766343,8.70381184,217.69,217.62,4.83606949]
[1734425766547,8.70381184,217.69,217.63,2.16]
[1734425767554,2.2971,217.67,217.64,2.2974]
[1734425768450,2.2972,217.66,217.64,2.2974]
[1734425768952,7.14181184,217.67,217.64,2.2974]
[1734425769147,9.43901184,217.67,217.64,2.2974]
[1734425769950,9.43901184,217.67,217.63,2.16]
[1734425769951,2.2972,217.66,217.63,4.4575]
[1734425773254,9.43901184,217.67,217.64,2.2974]
[1734425773558,2.2972,217.67,217.64,2.2974]
[1734425774959,2.2972,217.67,217.55,1.5343]
[1734425774960,7.14181184,217.67,217.55,1.5343]
[1734425775154,7.14181184,217.67,217.6,7.14181184]
[1734425775356,7.14181184,217.67,217.61,2.16]
[1734425775552,7.14181184,217.67,217.62,4.83531254]
[1734425775855,7.14181184,217.67,217.62,2.16]
[1734425777563,2.2974,217.65,217.62,4.4576]
[1734425778252,7.14181184,217.67,217.62,4.4576]
[1734425778253,2.2973,217.66,217.62,4.4576]
[1734425779862,2.2973,217.66,217.62,2.16]
[1734425780058,2.2973,217.66,217.63,2.2975]
[1734425781056,2.297,217.68,217.65,2.2973]
[1734425782055,3.8589,217.69,217.65,2.2973]
[1734425783366,2.297,217.68,217.65,2.2973]
[1734425784864,9.43881184,217.68,217.65,2.2973]
[1734425785064,11.00081184,217.69,217.65,2.2972]
[1734425790166,8.70381184,217.69,217.65,2.2972]
[1734425790365,2.297,217.68,217.65,2.2972]
[1734425797072,2.2969,217.7,217.64,7.14181184]
[1734425797264,7.14181184,217.71,217.64,7.14181184]
[1734425797467,1.525,217.75,217.64,7.14181184]
[1734425797666,0.7117175,217.74,217.64,7.14181184]
[1734425797874,2.2969,217.69,217.64,7.14181184]
[1734425799173,2.2969,217.69,217.66,2.2972]
[1734425799368,2.2969,217.69,217.55,1.5343]
[1734425799369,7.14181184,217.69,217.55,1.5343]
[1734425799570,2.2972,217.67,217.56,7.00062368]
[1734425799774,2.2972,217.67,217.61,7.14181184]
[1734425799976,2.2972,217.67,217.62,7.00062368]
[1734425800271,2.2972,217.67,217.63,4.84062368]
[1734425800476,2.2972,217.67,217.64,7.13802368]
[1734425800771,2.2972,217.67,217.64,2.2974]
[1734425800978,7.14181184,217.69,217.62,9.30181184]
[1734425801274,2.297,217.68,217.65,2.2973]
[1734425803075,7.14181184,217.69,217.65,2.2973]
[1734425804574,2.297,217.68,217.65,2.2973]
[1734425813873,2.297,217.68,217.65,4.4573]
[1734425814073,2.2974,217.65,217.63,2.16]
[1734425817381,2.2973,217.65,217.64,4.85522357]
[1734425820386,7.14181184,217.67,217.64,4.85445237]
[1734425820578,7.14181184,217.67,217.63,2.16]
[1734425820788,7.14181184,217.67,217.64,4.85445237]
[1734425820789,2.2973,217.65,217.64,4.85445237]
[1734425820980,5.39412602,217.73,217.64,4.85445237]
[1734425821176,5.39412602,217.73,217.65,4.85445237]
[1734425821379,10.78415595,217.75,217.66,7.14181184]
[1734425821583,7.14181184,217.71,217.64,7.14181184]
[1734425821783,7.14181184,217.71,217.65,4.85316596]
[1734425821982,2.2971,217.68,217.65,2.2973]
[1734425822484,7.14181184,217.71,217.64,7.14181184]
[1734425822485,2.2971,217.67,217.64,9.43921184]
[1734425822685,2.2971,217.67,217.65,4.85343872]
[1734425822985,2.2971,217.67,217.64,2.2974]
[1734425822986,2.2971,217.67,217.64,9.43921184]
[1734425823286,2.2971,217.67,217.65,4.85371479]
[1734425823491,2.2972,217.66,217.64,9.43921184]
[1734425823787,2.2972,217.66,217.65,4.85376239]
[1734425824586,2.2971,217.67,217.65,4.85376239]
[1734425824788,2.2971,217.67,217.64,9.43921184]
[1734425824984,2.2971,217.67,217.65,4.85322312]
[1734425825185,2.2971,217.67,217.64,9.43921184]
[1734425825385,2.2971,217.67,217.65,4.85339238]
[1734425825688,2.2971,217.67,217.64,9.43921184]
[1734425825879,2.2971,217.67,217.65,4.85344388]
[1734425826084,2.297,217.68,217.65,2.2972]
[1734425826284,1.525,217.75,217.66,7.14181184]
[1734425826485,7.14181184,217.74,217.68,7.14181184]
[1734425826683,7.14181184,217.74,217.68,9.30181184]
[1734425827184,1.525,217.75,217.68,2.16]
[1734425827378,7.14181184,217.73,217.68,2.16]
[1734425828680,2.2969,217.69,217.68,2.16]
[1734425829686,2.2969,217.69,217.68,7.0100193]
[1734425830402,2.2969,217.69,217.68,2.16]
[1734425831589,2.2969,217.69,217.68,7.00874231]
[1734425832188,2.2968,217.7,217.68,7.00874231]
[1734425832386,2.2968,217.7,217.68,2.16]
[1734425833389,1.525,217.75,217.68,4.4569]
[1734425833390,2.2967,217.72,217.68,4.4569]
[1734425834096,2.2967,217.71,217.68,4.4569]
[1734425835396,2.2967,217.72,217.69,2.2969]
[1734425835808,2.2967,217.72,217.68,2.16]
[1734425836008,2.2967,217.72,217.68,4.457]
[1734425836505,7.14181184,217.74,217.68,4.457]
[1734425836707,2.2967,217.71,217.68,4.457]
[1734425837107,2.2966,217.73,217.68,9.30181184]
[1734425837405,0.31139,217.76,217.68,9.30181184]
[1734425837406,0.31139,217.76,217.72,7.14181184]
[1734425837604,0.31139,217.76,217.74,7.14181184]
[1734425837908,0.31139,217.76,217.75,2.16]
[1734425842107,0.31139,217.76,217.75,4.4563]
[1734425846208,0.31139,217.76,217.75,11.59811184]
[1734425852115,0.31139,217.76,217.75,4.4563]
[1734425852415,0.31139,217.76,217.75,11.59811184]
[1734425853216,2.2959,217.79,217.76,2.2961]
[1734425853417,7.14181184,217.81,217.75,2.16]
[1734425853618,7.14181184,217.79,217.74,2.16]
[1734425854014,7.14181184,217.79,217.74,9.30181184]
[1734425854211,2.2962,217.77,217.74,9.30181184]
[1734425854714,7.14181184,217.79,217.74,9.30181184]
[1734425854715,2.2962,217.76,217.74,9.30181184]
[1734425856418,2.296,217.78,217.74,11.59811184]
[1734425858819,2.296,217.78,217.76,7.14181184]
[1734425859626,7.14181184,217.82,217.74,4.4563]
[1734425859922,7.14181184,217.82,217.75,7.14181184]
[1734425860321,2.2959,217.79,217.76,2.2961]
[1734425860722,2.2959,217.79,217.76,9.43791184]
[1734425860924,2.2959,217.79,217.75,2.2962]
[1734425861125,2.2959,217.79,217.76,7.14181184]
[1734425862222,2.2959,217.79,217.76,9.43791184]
[1734425862726,1.4886,217.85,217.78,7.14181184]
[1734425862928,7.85312259,217.84,217.79,2.2958]
[1734425863118,2.2955,217.83,217.79,2.2958]
[1734425863422,7.14181184,217.84,217.79,2.2958]
[1734425864516,2.2956,217.82,217.79,2.2958]
[1734425864719,1.4886,217.85,217.81,2.2956]
[1734425864921,0.71129559,217.84,217.81,2.2956]
[1734425865119,0.71129559,217.84,217.79,2.16]
[1734425865120,0.71129559,217.84,217.82,7.14181184]
[1734425865327,0.4787,217.87,217.83,2.2953]
[1734425865529,0.71126992,217.86,217.84,9.30181184]
[1734425865919,0.71121424,217.85,217.84,9.30181184]
[1734425866220,0.71121424,217.86,217.84,9.30181184]
[1734425866429,0.71121424,217.85,217.84,9.30181184]
[1734425867624,0.71121424,217.85,217.84,2.16]
[1734425868123,0.71121424,217.85,217.72,4.82427727]
[1734425868320,0.71121424,217.85,217.73,4.82427727]
[1734425868522,7.8530855,217.84,217.78,7.14181184]
[1734425868727,0.71127366,217.83,217.79,2.16]
[1734425869224,2.2956,217.82,217.79,2.16]
[1734425871435,2.2956,217.82,217.79,4.4558]
[1734425872323,2.2953,217.85,217.81,2.2956]
[1734425872528,0.4787,217.87,217.81,2.2956]
[1734425872529,7.62051184,217.87,217.81,2.2956]
[1734425873023,0.71122825,217.86,217.8,7.14181184]
[1734425873232,0.71122825,217.86,217.8,9.43751184]
[1734425873526,2.2954,217.84,217.8,9.43751184]
[1734425874330,2.2954,217.84,217.8,7.14181184]
[1734425874530,2.2954,217.84,217.81,2.2956]
[1734425876424,2.2954,217.83,217.81,2.2956]
[1734425879633,2.2954,217.83,217.8,9.43751184]
[1734425886834,2.2956,217.82,217.8,7.14181184]
[1734425887035,1.4954,217.87,217.8,7.14181184]
[1734425887235,1.4954,217.87,217.79,2.16]
[1734425887436,1.4954,217.87,217.81,7.14181184]
[1734425887839,2.2955,217.82,217.79,4.4558]
[1734425888036,7.14181184,217.83,217.77,2.14]
[1734425888237,7.14181184,217.83,217.76,9.28181184]
[1734425888634,2.2961,217.77,217.73,2.2965]
[1734425888940,7.14181184,217.83,217.75,7.14181184]
[1734425889143,7.14181184,217.79,217.69,3.1947]
[1734425889443,2.2965,217.73,217.71,7.14181184]
[1734425889632,2.2965,217.73,217.72,2.14]
[1734425890736,2.2963,217.75,217.72,2.14]
[1734425895136,7.14181184,217.77,217.72,2.14]
[1734425895437,2.2964,217.74,217.7,7.14181184]
[1734425895641,2.2964,217.74,217.71,2.14]
[1734425896641,2.2964,217.74,217.7,9.28181184]
[1734425897240,7.14181184,217.75,217.7,2.14]
[1734425897441,7.14181184,217.75,217.63,1.5229]
[1734425897442,7.14181184,217.75,217.69,2.14]
[1734425898246,7.14181184,217.75,217.67,2.2971]
[1734425898451,7.14181184,217.75,217.67,9.43891184]
[1734425898748,2.2966,217.72,217.68,2.297]
[1734425899843,2.2966,217.72,217.68,9.43881184]
[1734425900347,9.43851184,217.71,217.68,2.14]
[1734425900545,7.14181184,217.71,217.68,2.14]
[1734425900749,7.14181184,217.71,217.65,9.28181184]
[1734425900949,7.14181184,217.71,217.65,11.57901184]
[1734425900950,2.2968,217.7,217.65,11.57901184]
[1734425902141,2.2972,217.66,217.61,4.4377]
[1734425902347,2.2972,217.66,217.61,11.57951184]
[1734425902842,2.2972,217.66,217.62,7.14181184]
[1734425903147,7.14181184,217.67,217.61,2.14]
[1734425903451,2.2977,217.62,217.6,2.14]
[1734425903648,2.2977,217.62,217.59,9.28181184]
[1734425906042,2.2977,217.62,217.59,2.14]
[1734425906649,2.2978,217.61,217.57,2.16]
[1734425908153,2.2977,217.62,217.58,7.14181184]
[1734425908455,7.14181184,217.65,217.58,7.14181184]
[1734425909149,7.14181184,217.63,217.57,2.16]
[1734425909344,7.14181184,217.63,217.55,9.30181184]
[1734425909748,2.2979,217.6,217.55,11.60011184]
[1734425910153,2.2979,217.6,217.55,9.30181184]
[1734425910345,2.2979,217.6,217.57,7.14181184]
[1734425910550,2.2976,217.63,217.59,7.14181184]
[1734425911149,2.2977,217.62,217.58,7.14181184]
[1734425912447,7.14181184,217.63,217.56,7.14181184]
[1734425912950,7.08721122,217.64,217.58,7.14181184]
[1734425913155,14.22902306,217.64,217.58,7.14181184]
[1734425913354,2.2978,217.61,217.58,7.14181184]
[1734425913560,14.22902306,217.64,217.56,9.44001184]
[1734425913955,2.2978,217.61,217.56,9.44001184]
[1734425914564,7.14181184,217.62,217.56,9.44001184]
[1734425914860,2.2979,217.6,217.56,2.2982]
[1734425917560,2.298,217.59,217.55,2.2984]
[1734425917765,7.14181184,217.6,217.54,9.28181184]
[1734425918461,2.298,217.59,217.55,2.2984]
[1734425919558,7.14181184,217.6,217.54,2.2985]
[1734425919763,7.14181184,217.58,217.51,7.14181184]
[1734425919966,7.14181184,217.58,217.48,7.11057886]
[1734425920260,2.2984,217.55,217.51,2.2988]
[1734425921560,2.2985,217.54,217.51,2.2988]
[1734425926565,2.2986,217.53,217.5,2.2989]
[1734425926863,7.14181184,217.52,217.45,1.5111]
[1734425927266,2.299,217.49,217.44,9.28181184]
[1734425927464,2.299,217.49,217.44,2.14]
[1734425927659,2.299,217.49,217.45,7.14181184]
[1734425928065,7.14181184,217.52,217.45,9.28181184]
[1734425928366,7.14181184,217.52,217.45,2.14]
[1734425928667,7.14181184,217.5,217.45,2.14]
[1734425928857,7.14181184,217.5,217.44,2.14]
[1734425929063,7.14181184,217.48,217.42,2.14]
[1734425929463,7.14181184,217.46,217.42,2.14]
[1734425930665,7.14181184,217.46,217.41,2.2998]
[1734425930862,2.2996,217.44,217.4,2.3]
[1734425931061,2.2996,217.44,217.4,4.46]
[1734425931363,7.14181184,217.42,217.4,2.16]
[1734425931566,7.14181184,217.42,217.37,4.4603]
[1734425931870,9.44191184,217.4,217.35,2.16]
[1734425932059,7.14181184,217.4,217.35,2.16]
[1734425932962,3.1168,217.44,217.37,2.3002]
[1734425933272,8.62791184,217.44,217.37,7.14181184]
[1734425933461,2.2997,217.43,217.39,2.3]
[1734425933869,9.44141184,217.44,217.39,7.14181184]
[1734425934066,2.16,217.48,217.39,7.14181184]
[1734425934269,7.14181184,217.46,217.4,2.16]
[1734425934569,2.2996,217.44,217.4,2.16]
[1734425934961,2.2992,217.47,217.41,7.14181184]
[1734425935269,12.74011855,217.49,217.41,7.14181184]
[1734425936371,7.14181184,217.47,217.41,7.14181184]
[1734425936667,2.2994,217.46,217.42,2.2998]
[1734425936873,7.14181184,217.47,217.4,2.16]
[1734425937169,2.2995,217.45,217.4,4.46]
[1734425938468,2.2996,217.44,217.4,4.46]
[1734425939366,2.2997,217.43,217.4,2.16]
[1734425939966,7.14181184,217.45,217.4,4.46]
[1734425939967,2.2996,217.44,217.4,4.46]
[1734425941171,7.14181184,217.47,217.4,2.16]
[1734425941370,7.14181184,217.47,217.41,2.2998]
[1734425942277,2.2995,217.45,217.41,2.2998]
[1734425942666,7.14181184,217.45,217.4,2.16]
[1734425942866,7.14181184,217.45,217.39,2.16]
[1734425943070,5.59830671,217.49,217.39,2.16]
[1734425943071,7.14181184,217.43,217.39,2.16]
[1734425943370,7.14181184,217.41,217.37,4.4603]
[1734425944469,9.44181184,217.41,217.37,4.4603]
[1734425945467,2.3001,217.39,217.37,2.16]
[1734425946583,2.3001,217.39,217.35,2.14]
[1734425947468,2.3001,217.39,217.35,4.4405]
[1734425947671,2.3002,217.38,217.34,9.28181184]
[1734425947875,7.14181184,217.39,217.34,2.14]
[1734425948274,2.3004,217.37,217.33,2.3007]
[1734425948470,2.3004,217.37,217.33,4.4407]
[1734425948875,2.3004,217.37,217.33,2.3007]
[1734425949175,2.3004,217.37,217.33,4.4407]
[1734425950477,2.3004,217.37,217.33,2.3007]
[1734425950677,7.14181184,217.37,217.32,2.14]
[1734425950974,7.14181184,217.35,217.32,2.14]
[1734425951479,2.3007,217.33,217.3,2.14]
[1734425951680,7.14181184,217.35,217.3,2.14]
[1734425951878,2.3007,217.34,217.3,2.14]
[1734425952177,7.14181184,217.33,217.28,2.3012]
[1734425952475,2.3008,217.33,217.29,2.3011]
[1734425952678,2.3008,217.33,217.29,9.44291184]
[1734425953376,2.3008,217.33,217.29,11.60291184]
[1734425955181,2.3009,217.31,217.28,2.16]